bitfinex/quotes_ETHUSD_20250518
["timestamp","ask_amount","ask_price","bid_price","bid_amount"]
[1747599313969,2.5330069,2372.5,2371.4,4.21691827]
[1747599314170,4.21598555,2372.0,2371.4,4.21691827]
[1747599314375,6.74800374,2372.5,2371.4,4.21691827]
[1747599314575,6.11249036,2371.9,2371.0,5.83662969]
[1747599314776,1.89642727,2371.9,2371.2,4.21710011]
[1747599314983,1.89642727,2371.9,2371.0,2.2216595]
[1747599315478,1.89642727,2371.9,2371.4,4.21687893]
[1747599315659,1.89642727,2371.9,2371.7,4.21621243]
[1747599315837,1.89642727,2371.9,2371.8,4.2162071]
[1747599316046,1.89642727,2371.9,2371.8,5.05946463]
[1747599316551,1.89642727,2371.9,2371.8,6.67846463]
[1747599316751,4.60841336,2372.9,2371.8,6.67846463]
[1747599316752,1.525,2372.9,2371.8,2.46225753]
[1747599316956,1.525,2372.9,2371.8,5.83517718]
[1747599317285,5.73935249,2372.9,2372.3,4.2152011]
[1747599317492,4.21402023,2373.1,2372.0,4.25787018]
[1747599317656,4.21371987,2373.2,2371.8,21.4327]
[1747599317849,1.525,2373.3,2372.6,4.21468685]
[1747599318043,1.525,2373.3,2372.2,4.21549616]
[1747599318246,5.7387128,2373.3,2372.3,2.24314962]
[1747599318573,1.525,2373.3,2372.3,2.24314962]
[1747599318793,4.21366325,2373.3,2372.5,4.21479351]
[1747599318982,1.89642727,2373.4,2372.5,4.21496311]
[1747599319192,1.89642727,2373.4,2373.3,4.21354232]
[1747599319385,3.08341336,2374.4,2374.0,4.21229991]
[1747599319541,3.08341336,2374.4,2373.3,20.66322429]
[1747599319748,4.21197924,2374.2,2373.6,4.21288626]
[1747599319942,3.08341336,2374.4,2373.3,24.87671234]
[1747599320168,3.08341336,2374.4,2373.3,20.66322429]
[1747599320368,3.08341336,2374.4,2374.0,4.21229991]
[1747599321049,3.08341336,2374.4,2373.4,8.26101319]
[1747599321252,3.08341336,2374.4,2374.0,4.21229991]
[1747599321796,4.21139105,2374.6,2374.0,4.21229991]
[1747599321992,4.21085066,2374.9,2374.1,4.21210523]
[1747599322199,1.5613,2375.0,2374.1,0.58166052]
[1747599322363,1.5613,2375.4,2374.6,4.21112185]
[1747599322570,4.21033595,2375.2,2374.2,19.8137]
[1747599322888,4.21022246,2375.2,2374.2,19.8137]
[1747599323187,4.21064241,2375.0,2374.2,24.02560265]
[1747599323507,4.20748245,2375.0,2374.3,4.21166758]
[1747599323651,0.0443033,2374.9,2374.0,19.8137]
[1747599323859,5.77342248,2374.1,2374.0,19.8137]
[1747599324152,4.21415646,2373.0,2372.4,5.78784046]
[1747599324353,0.0443033,2373.1,2372.2,0.50002894]
[1747599324553,4.21354232,2373.3,2372.5,4.21491153]
[1747599324859,4.21366322,2373.3,2372.7,4.21455188]
[1747599325075,1.597,2373.4,2372.9,4.21409771]
[1747599325257,1.597,2373.4,2372.8,4.21429777]
[1747599325453,4.21371987,2373.2,2372.4,4.21504257]
[1747599325676,1.597,2373.4,2372.2,19.8137]
[1747599325888,4.21363954,2373.3,2372.7,4.2145097]
[1747599326197,4.2137484,2373.2,2372.7,4.2145097]
[1747599326372,8.0,2374.1,2372.6,4.21475261]
[1747599326571,4.21229991,2374.0,2372.9,4.21415769]
[1747599326772,1.597,2374.3,2373.1,1.5728]
[1747599326990,5.80877774,2374.3,2373.7,4.21266043]
[1747599327160,5.8088844,2374.3,2373.7,4.21283228]
[1747599327490,1.597,2374.3,2373.6,4.21300665]
[1747599327691,1.597,2374.3,2373.1,1.5728]
[1747599327858,1.597,2374.3,2373.2,4.30357412]
[1747599328060,4.2122457,2374.1,2373.5,4.21304265]
[1747599328401,5.80879046,2374.3,2373.7,4.21269336]
[1747599328402,5.80885262,2374.3,2373.7,4.21269336]
[1747599328559,4.21203598,2374.2,2373.6,4.21293998]
[1747599328758,1.597,2374.3,2373.7,4.21281176]
[1747599328960,1.597,2374.3,2373.3,19.8137]
[1747599329158,4.25624837,2374.2,2373.3,19.8137]
[1747599329371,8.0,2374.1,2373.3,19.8137]
[1747599329567,17.46,2374.0,2373.0,4.21396765]
[1747599329766,17.46,2374.0,2372.6,1.5931]
[1747599329995,21.67244323,2374.0,2372.6,1.5931]
[1747599330196,4.21279843,2373.8,2373.2,4.21368488]
[1747599330369,4.2126745,2373.8,2372.7,0.58079072]
[1747599330568,4.21295376,2373.7,2373.1,4.21387305]
[1747599330793,4.21347345,2373.4,2372.7,0.58079072]
[1747599330980,4.21280402,2373.8,2372.7,0.58079072]
[1747599331182,4.21328044,2373.5,2372.8,4.43175796]
[1747599331385,4.2130295,2373.6,2373.0,4.21405875]
[1747599331570,4.2125659,2373.9,2372.9,4.21417327]
[1747599331770,4.21273385,2373.8,2372.8,0.21738907]
[1747599331970,4.21274667,2373.8,2373.2,4.21364497]
[1747599332163,4.21247735,2373.9,2373.3,4.21343315]
[1747599332358,13.8002837,2374.3,2373.3,4.21343315]
[1747599332571,4.21274276,2373.8,2373.2,4.63498056]
[1747599332896,4.21248358,2373.9,2373.3,4.21354055]
[1747599333077,13.80029925,2374.3,2373.2,0.4213645]
[1747599333078,4.21212248,2374.1,2373.2,0.4213645]
[1747599333273,1.5885,2373.9,2372.8,19.8137]
[1747599333595,4.2142526,2372.9,2371.8,21.4068]
[1747599333758,4.21531846,2372.3,2371.8,24.02990486]
[1747599333961,4.21578141,2372.1,2371.8,19.8137]
[1747599334201,4.21588745,2372.0,2371.8,19.8137]
[1747599334365,4.21745181,2371.1,2371.0,0.50002894]
[1747599334562,4.16745181,2371.1,2371.0,0.50002894]
[1747599334763,4.21887636,2370.3,2370.0,1.5071]
[1747599334964,4.21875009,2370.4,2369.8,24.03335653]
[1747599335190,0.0443033,2370.8,2369.8,19.8137]
[1747599335494,4.21834134,2370.6,2370.0,4.21940499]
[1747599335697,4.21851929,2370.5,2369.8,4.21965718]
[1747599335899,0.0443033,2370.4,2369.4,4.22044952]
[1747599336086,8.0,2370.6,2369.5,22.41623135]
[1747599336398,8.0,2370.6,2369.3,19.8137]
[1747599336399,4.21964076,2369.9,2369.3,19.8137]
[1747599336599,0.0443033,2369.8,2368.6,42.23356247]
[1747599336769,0.0443033,2369.8,2368.7,4.30357412]
[1747599336770,1.6029,2369.6,2368.7,4.30357412]
[1747599337102,4.22069143,2369.3,2368.7,4.30357412]
[1747599337274,4.22138029,2368.9,2368.6,19.8137]
[1747599337474,4.22112694,2369.1,2367.9,26.04392833]
[1747599337700,4.22123709,2369.0,2368.4,4.22213719]
[1747599338002,17.389,2369.3,2368.0,4.22297297]
[1747599338186,1.6029,2369.6,2368.1,2.60438019]
[1747599338367,4.22140712,2368.9,2368.2,4.22250419]
[1747599338568,4.22140712,2368.9,2368.1,6.82716739]
[1747599338569,4.22184923,2368.7,2368.1,2.60438019]
[1747599338776,4.22096456,2369.2,2368.4,4.2221005]
[1747599339001,4.22120011,2369.0,2368.3,4.22237166]
[1747599339297,1.6626,2370.7,2368.5,1.6073]
[1747599339501,0.0443033,2370.6,2368.7,19.8137]
[1747599339666,4.21834134,2370.6,2369.0,4.22113828]
[1747599339997,1.6626,2369.7,2368.8,1.98137]
[1747599340171,17.374,2370.1,2369.3,4.22059016]
[1747599340382,4.22023032,2369.6,2368.8,1.98137]
[1747599340567,4.22023032,2369.6,2369.0,4.22118171]
[1747599340897,0.0443033,2369.5,2368.3,19.8137]
[1747599341077,4.22086681,2369.2,2368.6,4.22187651]
[1747599341279,12.22051796,2369.4,2368.7,4.22171088]
[1747599341280,4.22047775,2369.4,2368.7,4.22171088]
[1747599341614,4.22032034,2369.5,2368.7,4.22171088]
[1747599341615,4.22067878,2369.3,2368.7,4.2216218]
[1747599341962,8.0,2369.6,2368.7,4.22171973]
[1747599342169,4.22059057,2369.4,2368.7,4.22157318]
[1747599342496,0.55,2370.0,2368.7,0.84434776]
[1747599342714,17.357,2369.6,2368.8,4.22137501]
[1747599342882,4.22045697,2369.5,2368.8,4.22137501]
[1747599343404,4.22045697,2369.5,2368.9,4.22136492]
[1747599343590,12.21976897,2369.8,2369.0,4.22107429]
[1747599343791,21.56676897,2369.8,2369.2,4.22073844]
[1747599343970,4.21803914,2370.8,2369.2,4.22073844]
[1747599343971,5.88175137,2370.2,2369.6,4.21996736]
[1747599344161,5.88176297,2370.2,2369.6,4.21999587]
[1747599344374,4.21940928,2370.0,2369.2,0.84418612]
[1747599344575,4.21987435,2369.8,2369.0,4.22114309]
[1747599344899,4.21937498,2370.1,2368.9,5.79702642]
[1747599345124,1.6626,2370.2,2368.9,1.5757]
[1747599345301,17.339,2370.1,2368.9,1.5757]
[1747599345501,24.80558671,2370.8,2368.9,18.9117]
[1747599345502,1.6485,2370.8,2368.9,18.9117]
[1747599345797,4.21817936,2370.7,2370.1,4.21922206]
[1747599346507,1.6485,2370.8,2370.4,4.21858002]
[1747599346707,17.328,2371.1,2370.2,4.21899112]
[1747599347005,1.6485,2372.0,2371.8,4.21619998]
[1747599347304,1.6485,2372.4,2371.7,4.21633749]
[1747599347506,4.21549616,2372.2,2370.7,18.216]
[1747599347671,4.21673294,2371.6,2370.9,4.21767039]
[1747599348000,4.21743104,2371.2,2370.6,4.21820655]
[1747599348324,0.7,2372.0,2370.7,4.26034366]
[1747599348612,0.0443033,2372.3,2371.2,4.2171641]
[1747599348816,0.55,2372.4,2371.1,19.8137]
[1747599349032,4.21581443,2372.1,2371.5,4.21673928]
[1747599349239,0.0443033,2372.0,2371.1,19.8137]
[1747599349537,4.21632589,2371.8,2371.1,1.98137]
[1747599349743,4.21603031,2371.9,2371.2,4.21713166]
[1747599350096,4.21585912,2372.0,2370.8,17.346]
[1747599350296,4.21631078,2371.8,2371.1,4.21735262]
[1747599350635,4.21731451,2371.2,2370.4,24.03237052]
[1747599350806,4.21716644,2371.3,2370.6,4.21816458]
[1747599351010,4.21757928,2371.1,2370.5,4.21838416]
[1747599351332,0.0443033,2371.2,2370.4,19.8137]
[1747599351531,17.288,2371.5,2370.5,2.02355991]
[1747599351828,1.6485,2372.5,2371.6,4.2164415]
[1747599352152,4.21592056,2372.0,2371.4,4.21682298]
[1747599352442,0.0443033,2372.4,2371.1,17.346]
[1747599352676,1.6485,2372.5,2371.1,17.346]
[1747599352796,1.6485,2372.5,2371.2,4.21727395]
[1747599352995,4.21453264,2372.8,2372.2,4.21539691]
[1747599353215,1.5555,2372.9,2372.6,4.21469435]
[1747599353445,1.5555,2373.3,2372.2,4.21543773]
[1747599353747,0.30871785,2374.3,2372.3,1.5284]
[1747599353912,4.21268328,2373.8,2373.2,4.21360134]
[1747599354238,4.21300977,2373.6,2372.5,17.345]
[1747599354403,0.0443033,2373.7,2372.3,1.5284]
[1747599354404,4.21384745,2373.2,2372.3,1.5284]
[1747599354734,17.256,2373.5,2372.6,4.21467284]
[1747599354927,4.21354963,2373.3,2372.3,1.5284]
[1747599355133,4.21372952,2373.2,2372.7,4.21449933]
[1747599355333,17.256,2373.5,2372.9,4.21424855]
[1747599355536,4.21368207,2373.3,2372.7,4.21459577]
[1747599356337,21.46934982,2373.5,2372.8,4.21426125]
[1747599356539,17.256,2373.5,2372.7,4.21448913]
[1747599356737,4.21336479,2373.4,2372.6,4.21465977]
[1747599357040,17.256,2373.5,2372.9,4.21421941]
[1747599357254,1.5555,2373.8,2373.4,4.21326662]
[1747599357402,1.5555,2373.8,2373.2,4.21370432]
[1747599357609,1.5555,2373.8,2372.7,4.2145836]
[1747599357809,21.43807441,2374.2,2373.6,4.21291685]
[1747599358063,21.43807441,2374.2,2373.2,1.5284]
[1747599358064,21.43807441,2374.2,2373.7,4.21281704]
[1747599358201,21.43807441,2374.2,2373.6,4.21292302]
[1747599358527,17.226,2374.2,2373.6,4.21299614]
[1747599358725,21.43803074,2374.2,2373.4,17.336]
[1747599359041,4.21150189,2374.5,2373.2,5.74204901]
[1747599359244,0.06832855,2374.5,2373.3,17.336]
[1747599359540,5.85049091,2374.8,2374.2,4.21187942]
[1747599359710,1.6396,2375.2,2374.3,0.42118794]
[1747599359905,4.21071105,2374.9,2374.3,4.21168692]
[1747599360130,1.6396,2375.2,2374.0,1.6215]
[1747599360131,4.21097523,2374.8,2374.2,21.54793212]
[1747599360336,4.21069226,2375.0,2374.3,4.2116661]
[1747599360506,17.201,2375.6,2374.4,0.04211264]
[1747599360507,0.31444256,2375.6,2374.4,0.04211264]
[1747599360706,1.6396,2375.8,2374.4,4.25355851]
[1747599360915,0.0443033,2375.7,2374.5,0.42535585]
[1747599361111,4.21078526,2374.9,2374.3,17.336]
[1747599361311,9.64718671,2375.8,2374.5,4.21133533]
[1747599361312,4.21035321,2375.1,2374.5,4.21133533]
[1747599361513,4.21024428,2375.2,2374.6,4.21113553]
[1747599361744,1.6396,2375.8,2374.7,0.04210627]
[1747599361928,1.95334766,2375.8,2374.2,18.203]
[1747599362111,4.21144068,2374.5,2374.3,1.8203]
[1747599362310,8.0,2375.5,2374.2,18.203]
[1747599362311,4.21132899,2374.6,2374.2,18.203]
[1747599362543,4.2116508,2374.4,2373.7,4.21266979]
[1747599362747,4.2107036,2374.9,2373.6,1.6215]
[1747599362924,4.2116861,2374.4,2373.6,1.6215]
[1747599363126,8.0,2374.8,2373.7,2.56482233]
[1747599363338,4.21167866,2374.4,2373.8,4.21254887]
[1747599363650,1.6396,2374.7,2373.7,2.56482233]
[1747599363851,4.21141292,2374.5,2373.3,24.02710421]
[1747599364054,4.21148708,2374.5,2373.9,4.21246508]
[1747599364255,4.21176767,2374.3,2373.3,19.8137]
[1747599364414,4.21212248,2374.1,2373.3,19.8137]
[1747599364612,4.21212248,2374.1,2372.7,19.8137]
[1747599364613,1.5799,2373.4,2372.7,19.8137]
[1747599364824,4.21425749,2372.9,2372.7,19.8137]
[1747599365044,0.0443033,2373.3,2372.7,19.8137]
[1747599365224,1.5799,2373.4,2372.7,19.8137]
[1747599365429,4.2143799,2372.9,2372.7,19.8137]
[1747599365625,4.21386838,2373.2,2372.4,4.21511622]
[1747599365915,4.21386838,2373.2,2372.6,4.6361973]
[1747599366147,0.0443033,2373.1,2372.3,1.5777]
[1747599366322,1.5799,2373.4,2371.9,18.197]
[1747599366522,1.5799,2373.4,2372.7,4.2146004]
[1747599366733,1.5799,2373.4,2372.4,4.21496473]
[1747599366931,1.5799,2373.4,2372.5,4.21496311]
[1747599366932,4.21386147,2373.2,2372.5,4.21496311]
[1747599367131,1.5799,2373.4,2372.7,4.21460783]
[1747599367331,5.79328636,2373.4,2372.5,4.21490672]
[1747599367556,4.21409476,2373.0,2372.5,21.54296281]
[1747599367766,1.5799,2373.4,2372.1,4.21567387]
[1747599367972,4.21426896,2372.9,2372.2,17.328]
[1747599368146,1.5799,2375.4,2372.4,1.5777]
[1747599368470,1.5799,2375.4,2374.1,1.5777]
[1747599368471,5.79019259,2375.2,2374.1,1.5777]
[1747599368669,1.5799,2375.2,2374.1,1.5777]
[1747599368870,4.21104921,2374.8,2374.1,25.0949903]
[1747599369042,4.21189498,2374.3,2373.9,18.195]
[1747599369241,8.0,2375.0,2374.0,4.2121451]
[1747599369463,4.211283,2374.6,2374.0,4.2121451]
[1747599369665,12.21055096,2375.0,2373.9,18.195]
[1747599369867,1.5668,2374.4,2373.9,18.195]
[1747599370067,4.21203649,2374.2,2373.9,18.195]
[1747599370268,4.21187588,2374.3,2373.9,18.195]
[1747599370269,4.21187033,2374.3,2373.9,18.195]
[1747599370571,0.31566948,2374.8,2374.2,4.21179923]
[1747599370737,0.31566948,2374.8,2373.9,0.94223026]
[1747599370940,4.21158442,2374.5,2373.8,4.21255197]
[1747599371252,4.21177506,2374.3,2373.7,4.21278744]
[1747599371448,4.21165656,2374.4,2373.8,4.21262413]
[1747599371667,4.21186704,2374.3,2373.7,4.21283191]
[1747599372472,1.5668,2374.9,2373.9,4.21247735]
[1747599372640,1.5668,2375.0,2374.0,0.42546003]
[1747599372841,1.5668,2375.0,2374.0,17.326]
[1747599373159,4.21187069,2374.3,2373.5,21.4517]
[1747599373358,4.21200001,2374.2,2373.6,4.21296412]
[1747599373560,4.21200001,2374.2,2373.6,4.21299925]
[1747599373561,4.21206307,2374.2,2373.6,4.21299925]
[1747599373872,17.075,2374.6,2373.6,0.58509992]
[1747599374072,2.1168,2375.0,2373.5,1.638]
[1747599374272,4.21087189,2374.9,2373.8,4.21265481]
[1747599374472,4.21051136,2375.1,2374.0,4.21229991]
[1747599374775,1.5895,2375.4,2374.2,1.5451]
[1747599375073,1.5895,2376.4,2375.7,4.20913428]
[1747599375234,1.5895,2376.4,2375.4,21.27881532]
[1747599375434,4.20869926,2376.1,2375.5,4.20952418]
[1747599375674,1.5895,2376.4,2375.2,22.40012281]
[1747599375971,4.20906261,2375.9,2375.2,18.19]
[1747599376168,4.20939574,2375.7,2375.3,3.68041]
[1747599376337,4.20929001,2375.7,2375.3,3.68041]
[1747599376537,4.2091656,2375.8,2375.3,3.68041]
[1747599376750,4.20850112,2376.2,2375.6,4.20935549]
[1747599376972,4.20862779,2376.1,2375.5,4.2095715]
[1747599377169,4.2087618,2376.0,2375.6,0.84193888]
[1747599377337,4.20866168,2376.1,2375.5,4.2096324]
[1747599377534,1.5895,2376.4,2375.7,4.20915635]
[1747599377748,1.229777,2377.3,2375.7,1.5451]
[1747599378078,1.5895,2377.6,2376.3,4.20819362]
[1747599378263,8.0443033,2377.5,2376.2,4.20825761]
[1747599378463,4.20726119,2376.9,2376.3,0.42082576]
[1747599378776,0.0443033,2377.5,2376.3,0.42082576]
[1747599378994,4.20802193,2376.5,2375.7,21.3588]
[1747599379178,4.20730347,2376.9,2376.2,4.20827401]
[1747599379344,4.20730347,2376.9,2375.8,21.27408218]
[1747599379548,4.207191,2376.9,2376.3,4.2081123]
[1747599379763,4.20609884,2377.5,2376.5,4.20774863]
[1747599379964,4.20708857,2377.0,2376.5,0.42077486]
[1747599380285,4.20627576,2377.4,2376.5,0.42077486]
[1747599380286,4.20717686,2376.9,2376.5,0.42077486]
[1747599380488,4.20609884,2377.5,2375.8,36.8787]
[1747599380696,0.0443033,2377.4,2376.5,4.20778589]
[1747599380860,4.20700085,2377.0,2376.3,4.20815441]
[1747599381054,12.20631794,2377.4,2375.9,4.20893135]
[1747599381260,4.20571992,2377.8,2376.8,1.5451]
[1747599381505,4.20537336,2378.0,2376.9,17.06]
[1747599381670,0.0443033,2378.0,2376.9,17.06]
[1747599381858,4.2062112,2377.5,2376.9,4.20712056]
[1747599382062,4.20648086,2377.3,2376.8,18.6051]
[1747599382397,4.20560715,2377.8,2376.8,1.5451]
[1747599382564,4.20609884,2377.5,2376.4,17.06]
[1747599382773,4.20655658,2377.3,2376.6,4.20764577]
[1747599382984,8.0,2377.6,2376.4,17.06]
[1747599383170,4.20668101,2377.2,2376.6,4.20757878]
[1747599383372,0.55,2377.5,2376.5,17.055]
[1747599383570,4.20713691,2377.0,2376.5,17.055]
[1747599383892,0.0443033,2376.9,2376.0,39.34476314]
[1747599384102,4.20762417,2376.7,2376.1,4.20844115]
[1747599384263,4.20741031,2376.8,2376.1,4.2085251]
[1747599384464,4.20722188,2376.9,2376.1,4.2085251]
[1747599384664,4.20689278,2377.1,2376.2,3.70595825]
[1747599384860,1.5895,2377.4,2376.3,17.055]
[1747599385066,4.20689466,2377.1,2376.5,4.20774147]
[1747599385281,4.20762452,2376.7,2376.3,17.055]
[1747599385591,4.20765504,2376.7,2376.3,17.055]
[1747599385794,4.20765504,2376.7,2376.2,4.20837217]
[1747599386090,8.0,2376.9,2376.0,35.233]
[1747599386294,4.20751462,2376.7,2376.0,18.181]
[1747599386497,4.7587542,2376.0,2375.9,19.8137]
[1747599386660,1.6472,2375.8,2374.8,22.80991992]
[1747599386860,0.55,2375.6,2374.9,4.6138642]
[1747599387057,4.20974395,2375.5,2374.9,4.6138642]
[1747599387592,4.20955097,2375.6,2375.0,4.21038179]
[1747599387793,8.0,2375.7,2374.9,8.82447931]
[1747599387958,8.0,2376.0,2375.2,4.2100144]
[1747599388159,4.20900736,2375.9,2375.3,4.20993121]
[1747599388383,1.6472,2376.2,2375.3,4.20993121]
[1747599388384,1.6472,2376.2,2375.3,4.20999452]
[1747599388591,5.85570373,2376.2,2375.2,0.8813954]
[1747599388791,4.2087542,2376.0,2375.2,0.8813954]
[1747599389099,0.7,2376.0,2375.2,17.053]
[1747599389262,8.0,2376.5,2375.6,1.5031]
[1747599389458,4.20775057,2376.6,2375.7,4.20928568]
[1747599389686,0.0443033,2376.5,2375.7,18.174]
[1747599389887,4.20981729,2375.4,2375.3,19.8137]
[1747599390494,4.20970831,2375.5,2375.3,19.8137]
[1747599390796,8.0,2375.9,2374.9,4.26236199]
[1747599390978,4.20958716,2375.6,2375.0,6.99096166]
[1747599391376,0.55,2375.9,2375.0,2.78058235]
[1747599391377,8.55,2375.9,2375.0,2.78058235]
[1747599391565,1.534,2375.6,2375.0,0.35148741]
[1747599391897,4.21034903,2375.1,2375.0,0.35148741]
[1747599392103,8.0,2375.1,2375.0,0.35148741]
[1747599392267,4.21034903,2375.1,2375.0,0.35148741]
[1747599392602,12.25465233,2375.1,2375.0,0.35148741]
[1747599392826,8.55,2375.1,2373.9,5.71541866]
[1747599392972,4.210946,2374.8,2374.0,4.09464187]
[1747599393174,4.2112639,2374.6,2374.1,4.21204146]
[1747599393581,4.21088091,2374.8,2374.1,4.21211029]
[1747599393892,8.0,2375.0,2374.0,4.09464187]
[1747599394107,23.20338974,2375.1,2373.8,18.176]
[1747599394108,8.0,2374.7,2373.8,18.176]
[1747599394309,1.6032,2374.4,2373.5,21.3814]
[1747599394508,4.21279581,2373.8,2373.3,0.50002894]
[1747599394708,4.21287803,2373.7,2373.3,0.50002894]
[1747599394913,4.21272629,2373.8,2373.3,0.7735454]
[1747599395088,24.895,2374.2,2373.3,4.98693771]
[1747599395291,4.21285219,2373.7,2373.3,0.7735454]
[1747599395625,4.21285219,2373.7,2372.9,18.176]
[1747599395626,4.21407501,2373.0,2372.9,18.176]
[1747599395829,4.21407627,2373.0,2372.5,19.8137]
[1747599395998,0.35238878,2372.9,2372.5,19.8137]
[1747599396198,0.35238878,2372.9,2372.6,4.21472677]
[1747599396391,0.35238878,2372.9,2372.8,4.2144302]
[1747599396586,4.21248169,2373.9,2372.9,5.7819526]
[1747599396838,8.0,2373.9,2373.2,4.21362286]
[1747599396994,12.21253797,2373.9,2373.3,4.21352573]
[1747599397186,0.7,2373.7,2373.2,4.21360178]
[1747599397846,4.21312892,2373.6,2373.0,4.21403798]
[1747599398025,4.21375057,2373.2,2372.6,4.21468625]
[1747599398326,18.4752,2373.5,2372.4,25.59647223]
[1747599398522,18.4752,2373.5,2372.4,5.78272328]
[1747599398690,4.21340318,2373.4,2372.4,1.5677]
[1747599398892,18.4752,2373.5,2372.5,4.21496311]
[1747599399121,8.5943033,2373.4,2372.4,1.5677]
[1747599399326,4.2142526,2372.9,2372.2,19.8137]
[1747599399525,4.21497057,2372.5,2372.0,18.6433]
[1747599399730,8.0,2372.8,2372.0,17.062]
[1747599400224,4.21605034,2371.9,2371.5,20.31372894]
[1747599400425,16.856,2372.3,2371.5,20.31372894]
[1747599400624,16.856,2372.3,2371.3,1.5813]
[1747599400625,8.0,2372.2,2371.3,1.5813]
[1747599400826,4.21581316,2372.1,2371.6,4.21653896]
[1747599401027,4.21549667,2372.2,2371.5,4.258864]
[1747599401195,12.21502031,2372.5,2371.5,1.04789046]
[1747599401407,4.21569537,2372.1,2371.5,1.00572446]
[1747599401613,0.55,2372.4,2370.9,39.578]
[1747599401819,0.55,2372.0,2370.9,21.395]
[1747599402021,1.5206,2371.7,2370.9,19.8137]
[1747599402220,12.21674045,2371.5,2370.9,19.8137]
[1747599402508,12.21674045,2371.5,2370.8,4.21792273]
[1747599402509,4.21707711,2371.4,2370.8,4.21792273]
[1747599402727,0.55,2371.4,2370.4,0.50002894]
[1747599402933,4.2181664,2370.7,2370.4,0.50002894]
[1747599403118,4.21792266,2370.9,2370.4,0.50002894]
[1747599403324,4.21798814,2370.8,2370.4,0.50002894]
[1747599403506,2.0706,2371.3,2370.4,0.50002894]
[1747599403707,4.21851929,2370.5,2370.4,0.50002894]
[1747599404213,0.55,2371.2,2370.4,0.50002894]
[1747599404416,4.21824129,2370.7,2370.1,4.21909979]
[1747599404629,0.55,2370.8,2369.9,1.5813]
[1747599404856,8.0,2370.6,2369.5,1.6479]
[1747599405009,8.0,2370.6,2369.9,4.21940943]
[1747599405209,4.21855359,2370.5,2369.9,4.21940943]
[1747599405440,4.21871705,2370.4,2369.8,4.21971891]
[1747599405646,12.21836185,2370.6,2369.9,4.21953144]
[1747599405647,4.21853188,2370.5,2369.9,4.21953144]
[1747599406659,2.1537,2370.5,2369.5,18.4829]
[1747599406854,4.21976538,2369.8,2369.1,19.8137]
[1747599407052,25.4143033,2369.7,2369.1,19.8137]
[1747599407357,0.35238878,2369.6,2369.3,4.22051507]
[1747599407528,0.35238878,2369.6,2368.2,1.6479]
[1747599407529,17.16938878,2369.6,2369.2,4.22074915]
[1747599407713,17.16938878,2369.6,2368.6,4.22190323]
[1747599408041,17.16938878,2369.6,2369.5,4.22029964]
[1747599408042,0.35238878,2369.6,2369.5,4.22029964]
[1747599408251,8.35238878,2369.6,2368.7,4.05146032]
[1747599408424,4.26470714,2369.5,2368.9,4.22124436]
[1747599408741,0.35238878,2369.4,2368.8,4.22147077]
[1747599408943,0.35238878,2369.4,2369.0,4.22109143]
[1747599409152,0.35238878,2369.4,2369.0,4.2210905]
[1747599409364,0.35238878,2369.4,2369.2,4.22081037]
[1747599409656,0.35238878,2369.4,2369.1,4.22085963]
[1747599409951,0.35238878,2369.4,2368.7,5.86957132]
[1747599409952,4.57288369,2369.4,2368.7,5.86957132]
[1747599410117,0.35238878,2369.4,2368.8,4.22139266]
[1747599410322,0.35238878,2369.4,2368.7,1.6479]
[1747599410533,0.35238878,2369.4,2369.0,4.22112982]
[1747599410918,0.35238878,2369.4,2368.8,2.14616]
[1747599411119,0.35238878,2369.4,2369.1,4.22089306]
[1747599411334,0.35238878,2369.4,2368.7,1.6479]
[1747599411534,4.57296437,2369.4,2368.8,4.22145637]
[1747599411750,4.57296437,2369.4,2368.8,4.22143576]
[1747599412149,0.35238878,2369.4,2368.9,4.22134665]
[1747599412318,0.35238878,2369.4,2369.0,4.22109784]
[1747599412518,4.57292159,2369.4,2368.7,5.86956283]
[1747599412720,0.35238878,2369.4,2368.9,4.22133833]
[1747599412948,0.35238878,2369.4,2368.8,4.22150796]
[1747599413154,0.5943033,2369.3,2368.4,19.8137]
[1747599413355,4.22147348,2368.9,2368.4,24.03595131]
[1747599413529,4.22101219,2369.1,2368.3,16.842]
[1747599413530,0.90238878,2369.3,2368.3,16.842]
[1747599413725,4.22083403,2369.2,2368.3,18.94845673]
[1747599413938,20.9951385,2369.1,2368.5,4.22196081]
[1747599414261,20.99509651,2369.1,2368.6,4.22188747]
[1747599414456,20.99509651,2369.1,2368.5,4.22200099]
[1747599414658,0.0443033,2369.0,2368.3,21.0644155]
[1747599414859,4.22129666,2369.0,2368.3,18.29618767]
[1747599415152,20.99508381,2369.1,2368.4,4.22221266]
[1747599415325,8.35238878,2369.1,2368.3,18.29618767]
[1747599415527,0.35238878,2369.0,2368.6,4.22188253]
[1747599415853,0.35238878,2369.0,2368.9,4.22136856]
[1747599416054,0.35238878,2369.0,2368.4,4.22225975]
[1747599416241,0.35238878,2369.0,2367.9,1.5076]
[1747599416440,21.33166693,2369.0,2368.5,4.22201912]
[1747599416754,21.33174536,2369.0,2368.0,3.81783]
[1747599416931,4.22139356,2368.9,2367.9,5.73066701]
[1747599417255,0.35238878,2368.8,2367.9,1.5076]
[1747599417457,0.35238878,2368.8,2368.3,4.22227573]
[1747599417757,0.35238878,2368.8,2368.6,4.22177699]
[1747599417954,0.35238878,2368.8,2368.5,4.22198023]
[1747599418254,0.35238878,2368.8,2368.7,4.22172499]
[1747599418756,0.35238878,2368.8,2368.5,4.64421502]
[1747599419059,0.35238878,2368.8,2368.5,4.22203432]
[1747599419362,0.35238878,2368.8,2368.4,4.22217988]
[1747599419661,1.6287,2368.5,2367.9,19.8137]
[1747599419840,16.731,2368.4,2367.6,19.8137]
[1747599420035,4.22350804,2367.7,2367.6,19.8137]
[1747599420385,5.85220804,2367.7,2367.6,19.8137]
[1747599420559,4.22371524,2367.6,2366.8,1.6286]
[1747599420857,4.22371524,2367.6,2366.6,4.22540957]
[1747599420858,0.55,2367.5,2366.5,4.22564969]
[1747599421060,16.722,2367.5,2366.8,4.22504759]
[1747599421231,4.22466741,2367.1,2366.6,4.81080788]
[1747599421424,16.717,2368.0,2367.4,4.22391073]
[1747599421734,16.717,2368.0,2367.9,4.22315131]
[1747599421949,1.6287,2367.8,2366.6,2.21402497]
[1747599422262,1.6287,2367.8,2367.0,4.22465038]
[1747599422263,5.85207462,2367.8,2367.0,4.22465038]
[1747599422557,0.55,2367.7,2366.6,1.6286]
[1747599422762,1.6287,2367.8,2366.6,1.6286]
[1747599423061,0.32358106,2368.0,2366.7,4.2252926]